[Event "Catalonia Championship Veterans 2024"]
[Site "Salou Tarragona"]
[Date "2024.05.17"]
[Round "7.2"]
[White "Narciso Dublan, Marc"]
[Black "Guerra Mendez, Jose Angel"]
[Result "1/2-1/2"]
[ECO "C45"]
[WhiteElo "2424"]
[BlackElo "2489"]
[Annotator "TA"]
[PlyCount "119"]
[EventDate "2024.05.11"]
[EventType "swiss"]
[EventCountry "ESP"]
[SourceTitle "playchess.com"]
[Source "ChessBase"]
[SourceQuality "1"]
[TimeControl "5400+30"]

{[%evp 10,119,2,-21,18,6,12,6,18,14,14,19,16,10,27,22,14,18,23,27,23,25,64,62,74,83,100,94,87,85,100,104,122,104,189,166,169,28,41,35,17,24,25,37,58,26,54,49,70,60,70,66,92,48,53,53,69,27,143,129,182,128,139,143,187,110,106,18,22,0,0,0,0,-8,-1,-8,-8,-8,0,0,0,0,0,0,8,8,8,0,0,0,0,0,0,0,0,0,0,0,0,0,8,8,8,0,0,0,0,0,0,0,0,0]} 1. e4 {[%emt 0:00:14]} e5 {[%emt 0:00:43]} 2. Nf3 {[%emt 0:00:23]} Nc6 {[%emt 0:00:05]} 3. d4 {[%emt 0:00:31]} exd4 {[%emt 0:00:07]} 4. Nxd4 {[%emt 0:00:11]} Nf6 {[%emt 0:00:06]} 5. Nxc6 {[%emt 0:00:31]} bxc6 {[%emt 0:00:05]} 6. Nd2 {[%emt 0:00:43]} d6 {[%emt 0:18:37]} 7. Bd3 {[%emt 0:00:47]} g6 {[%emt 0:00:05]} 8. b3 {[%emt 0:00:31]} Bg7 {[%emt 0:00:19]} 9. Bb2 {[%emt 0:00:08]} O-O {[%emt 0:01:01]} 10. O-O {[%emt 0:00:16]} Re8 {[%emt 0:07:04]} 11. Qc1 {[%emt 0:05:01]} Bb7 {[%emt 0:07:27]} 12. Bc3 {[%emt 0:03:40]} Nd7 {[%emt 0:03:22][%cal Bf6d7,Bd7c5,Bc5d3][%mdl 32]} 13. Qb2 {[%emt 0:04:24]} Bxc3 {[%emt 0:00:06]} 14. Qxc3 {[%emt 0:00:05]} Qf6 {[%emt 0:00:06]} 15. Qa5 {[%emt 0:01:02]} Qd8 {[%emt 0:12:33]} 16. f4 {[%emt 0:05:41][%cal Bf2f4,Bf4f5][%mdl 32]} Nc5 {[%emt 0:00:07]} 17. Rae1 {[%emt 0:07:31]} Nxd3 {[%emt 0:00:46]} 18. cxd3 {[%emt 0:00:08]} c5 {[%emt 0:46:51]} 19. f5 {[%emt 0:03:55]} c6 {[%emt 0:00:00]} 20. Qc3 {[%emt 0:01:00] White is more active.} Ba6 {[%emt 0:00:00]} 21. Re3 {[%emt 0:10:09]} Qe7 {[%emt 0:00:00]} (21... d5 $16 {was worth a try.} 22. fxg6 (22. Qxc5 Qb6 $14) 22... fxg6 23. Qxc5 Qb6) 22. Qa5 {[%emt 0:21:34]} Qb7 {[%emt 0:00:00]} 23. Rh3 {[%emt 0:03:04]} ({Better is} 23. Nf3 $18) 23... Qb6 $11 {[%emt 0:00:00]} 24. Qc3 {[%emt 0:03:57]} Qb4 $1 {[%emt 0:00:00]} 25. Rc1 {[%emt 0:09:20]} Qxc3 {[%emt 0:00:00]} 26. Rxc3 {[%emt 0:00:02]} Rad8 {[%emt 0:00:00]} 27. Kf2 {[%emt 0:01:02]} Kg7 {[%emt 0:00:00]} 28. g4 {[%emt 0:03:18]} Rd7 {[%emt 0:00:23]} 29. Re3 {[%emt 0:01:50]} f6 {[%emt 0:00:59]} 30. h4 {[%emt 0:01:08]} Kf7 {[%emt 0:01:54]} 31. Nf3 {[%emt 0:02:16]} gxf5 {[%emt 0:00:36]} 32. gxf5 {[%emt 0:00:19]} Rb7 {[%emt 0:01:30]} 33. d4 {[%emt 0:02:32]} c4 {[%emt 0:00:17]} 34. e5 $1 $16 {[%emt 0:00:21]} ({Resist} 34. bxc4 $6 Rb2+ 35. Kg3 Rg8+ 36. Kh3 Bc8 $14) 34... d5 {[%emt 0:01:01]} (34... cxb3 $16 {was called for.} 35. axb3 (35. Rxb3 dxe5 36. dxe5 Reb8 $16) 35... dxe5) 35. Re1 {[%emt 0:02:58]} (35. Kg3 $18) 35... Rbb8 {[%emt 0:00:52]} 36. Rce3 {[%emt 0:03:58]} Bb5 {[%emt 0:00:15] [#]} 37. Rg1 {[%emt 0:03:42]} (37. exf6 $1 $18 Rxe3 38. Kxe3 (38. Rxe3 Kxf6 39. a4 Ba6 $11) 38... Re8+ 39. Ne5+ Kxf6 40. Kf4) 37... Rg8 {[%emt 0:01:09] [#]} 38. Rxg8 {[%emt 0:00:39]} ({White should play} 38. Rg3 $1 $16) 38... Rxg8 $11 {[%emt 0:00:06] The position is equal.} 39. exf6 {[%emt 0:00:29]} Kxf6 $16 {[%emt 0:00:10][%mdl 4096] Endgame. KRB-KRN} 40. a4 {[%emt 0:00:18]} Ba6 {[%emt 0:00:30]} 41. Re6+ {[%emt 0:00:08]} Kxf5 {[%emt 0:00:04]} 42. Rxc6 {[%emt 0:00:05]} Rg6 {[%emt 0:00:55]} 43. Rxg6 {[%emt 0:00:29]} hxg6 {[%emt 0:00:05]} 44. bxc4 {[%emt 0:00:41]} dxc4 $11 {[%emt 0:00:46] ...Ke4 is the strong threat. KB-KN} 45. Ke3 {[%emt 0:00:28]} c3 {[%emt 0:00:58] And now ...Ke6 would win.} 46. Ne5 {[%emt 0:00:35]} Bf1 {[%emt 0:00:39]} 47. Nc6 $1 {[%emt 0:01:07]} Kg4 {[%emt 0:00:45]} 48. Ne5+ {[%emt 0:00:45]} Kxh4 {[%emt 0:00:25] ...Kg5 would now be deadly.} 49. Nxg6+ {[%emt 0:00:05]} Kg5 {[%emt 0:00:07]} 50. Ne7 {[%emt 0:00:11]} Bc4 {[%emt 0:00:51]} 51. Nc6 {[%emt 0:00:48]} Kf5 {[%emt 0:00:41]} 52. Nxa7 {[%emt 0:00:28]} c2 {[%emt 0:00:07]} 53. Kd2 {[%emt 0:00:05]} Ke4 {[%emt 0:00:47]} 54. Nb5 {[%emt 0:00:19]} Bb3 {[%emt 0:00:26]} 55. a5 {[%emt 0:00:17] Intending a6 and mate.} Kd5 $1 {[%emt 0:00:21]} 56. Nc3+ {[%emt 0:01:47]} Kxd4 {[%emt 0:00:37]} 57. Nb5+ {[%emt 0:00:32]} Kc5 {[%emt 0:00:13]} 58. Na3 {[%emt 0:00:02]} Kb4 {[%emt 0:00:40][%csl LRa3,LRa5]} 59. Nxc2+ {[%emt 0:00:04]} Kxa5 {[%emt 0:00:14]} 60. Kd3 {[%emt 0:01:56] Weighted Error Value: White=0.14 (very precise) /Black=0.14 (very precise) .  Mistake:       	White=4     	Black=3      Inaccurate:     	White=3     	Black=4      OK:         	White=25    	Black=22     Best:        	---       	Black=2      Strong:       	White=2     	Black=2} 1/2-1/2

[Event "Catalonia Championship Veterans 2024"]
[Site "Salou Tarragona"]
[Date "2024.05.17"]
[Round "7.3"]
[White "Parals Marce, Luis"]
[Black "Brusi Noguera, Ricardo Ll."]
[Result "0-1"]
[ECO "B02"]
[WhiteElo "2000"]
[BlackElo "2059"]
[Annotator "NA RC"]
[PlyCount "40"]
[EventDate "2024.05.11"]
[EventType "swiss"]
[EventCountry "ESP"]
[SourceTitle "playchess.com"]
[Source "ChessBase"]
[SourceQuality "1"]
[TimeControl "5400+30"]

1. e4 {[%emt 0:00:18]} Nf6 {[%emt 0:00:06]} 2. e5 {[%emt 0:00:13]} Nd5 {[%emt 0:00:03]} 3. c4 {[%emt 0:00:15]} Nb6 {[%emt 0:00:07]} 4. a4 {[%emt 0:00:13]} a5 {[%emt 0:00:35]} 5. Ra3 {[%emt 0:00:30]} e6 {[%emt 0:00:51]} 6. Rg3 {[%emt 0:00:23]} d6 {[%emt 0:02:54]} 7. exd6 {[%emt 0:01:34]} Bxd6 {[%emt 0:01:51]} 8. Re3 {[%emt 0:20:38]} Nc6 {[%emt 0:09:50]} 9. b3 {[%emt 0:12:10]} O-O {[%emt 0:12:52]} 10. Nf3 {[%emt 0:04:32]} Bc5 {[%emt 0:01:44]} 11. Rc3 {[%emt 0:10:59]} e5 {[%emt 0:03:05]} 12. Ba3 {[%emt 0:07:08]} Nb4 {[%emt 0:07:23]} 13. Bxb4 {[%emt 0:02:03]} axb4 {[%emt 0:00:44]} 14. Rc1 {[%emt 0:13:59]} e4 {[%emt 0:06:12]} 15. Ng1 {[%emt 0:04:11]} Qd4 {[%emt 0:15:30]} 16. Qe2 {[%emt 0:00:58]} Bg4 {[%emt 0:02:22]} 17. f3 {[%emt 0:02:58]} exf3 {[%emt 0:00:51]} 18. Nxf3 {[%emt 0:02:11]} Qb2 {[%emt 0:01:46]} 19. Qd1 {[%emt 0:01:11]} Bxf3 {[%emt 0:02:29]} 20. gxf3 {[%emt 0:01:40]} Qd4 {[%emt 0:00:39]} 0-1

[Event "Catalonia Championship Veterans 2024"]
[Site "Salou Tarragona"]
[Date "2024.05.17"]
[Round "7.5"]
[White "Lacasa Diaz, Josep Anton"]
[Black "Pogorelov, Ruslan"]
[Result "1-0"]
[ECO "E14"]
[WhiteElo "2335"]
[BlackElo "2282"]
[Annotator "TA"]
[PlyCount "113"]
[EventDate "2024.05.11"]
[EventType "swiss"]
[EventCountry "ESP"]
[SourceTitle "playchess.com"]
[Source "ChessBase"]
[SourceQuality "1"]
[TimeControl "5400+30"]

{[%evp 11,113,33,41,32,41,45,38,40,44,49,39,35,72,64,55,47,52,47,54,43,36,41,48,51,47,38,50,32,43,45,44,35,43,48,22,40,40,18,40,0,0,0,0,0,0,0,0,0,0,0,0,0,0,0,13,0,0,0,0,0,0,0,33,44,41,8,8,8,8,8,8,8,8,8,8,8,8,8,8,8,2770,1307,1300,1300,1300,1276,5974,5774,1825,592,29973,29974,29974,29975,29975,29976,29976,29977,29977,29969,29978,29979,29980,29981]} 1. Nf3 {[%emt 0:00:04]} Nf6 {[%emt 0:00:07]} 2. c4 {[%emt 0:00:14]} e6 {[%emt 0:00:09]} 3. e3 {[%emt 0:00:22]} b6 {[%emt 0:01:58]} 4. d4 {[%emt 0:01:01]} Bb7 {[%emt 0:00:16]} 5. Bd3 {[%emt 0:01:00]} Bb4+ {[%emt 0:04:12]} 6. Nbd2 {[%emt 0:02:45]} Ne4 {[%emt 0:10:52]} 7. a3 {[%emt 0:25:48]} Bxd2+ {[%emt 0:00:57]} 8. Nxd2 {[%emt 1:03:16]} Nxd2 {[%emt 0:00:50]} 9. Bxd2 {[%emt 0:00:30] White is slightly better.} Qg5 {[%emt 0:03:37]} 10. Rg1 {[%emt 0:00:30]} Qh4 {[%emt 1:12:32]} 11. h3 {[%emt 0:00:00]} f5 {[%emt 0:00:00]} 12. Qc2 {[%emt 0:00:00][%cal Od4d5]} Be4 {[%emt 0:00:00]} 13. Bxe4 {[%emt 0:00:00]} Qxe4 {[%emt 0:00:00]} 14. Qxe4 {[%emt 0:00:00]} fxe4 {[%emt 0:00:00]} 15. f3 {[%emt 0:00:00]} exf3 {[%emt 0:00:00]} 16. gxf3 {[%emt 0:00:00]} O-O {[%emt 0:00:00]} 17. Ke2 {[%emt 0:00:00]} d6 {[%emt 0:00:00]} 18. b4 {[%emt 0:00:00]} Nd7 {[%emt 0:00:00]} 19. a4 {[%emt 0:00:00]} e5 {[%emt 0:00:00]} 20. dxe5 {[%emt 0:00:00]} Nxe5 {[%emt 0:00:00]} 21. Bc3 {[%emt 0:05:30]} Rae8 {[%emt 0:00:00]} 22. f4 {[%emt 0:00:00]} Ng6 {[%emt 0:00:00]} 23. Kd3 {[%emt 0:00:00][%cal Oh3h4]} Rf7 {[%emt 0:00:00]} 24. Rg3 {[%emt 0:00:00]} Ne7 {[%emt 0:00:00]} 25. e4 {[%emt 0:00:00]} Ng6 {[%emt 0:00:00]} 26. f5 {[%emt 0:00:00]} Ne5+ {[%emt 0:00:00]} 27. Bxe5 {[%emt 0:00:00]} dxe5 $11 {[%emt 0:00:00][%mdl 4096] Endgame. KRR-KRR} 28. a5 {[%emt 0:00:00]} Rd8+ {[%emt 0:00:00]} 29. Kc3 {[%emt 0:00:00]} Rd4 {[%emt 0:00:00]} 30. axb6 {[%emt 0:00:00]} axb6 {[%emt 0:00:00]} 31. Ra8+ {[%emt 0:00:00]} Rf8 {[%emt 0:00:00]} 32. Ra7 {[%emt 0:00:00]} Rc8 {[%emt 0:00:00]} 33. Rg4 {[%emt 0:00:00]} Kf7 {[%emt 0:00:00]} 34. c5 {[%emt 0:00:00]} bxc5 {[%emt 0:00:00]} 35. bxc5 {[%emt 0:00:00]} Rd7 {[%emt 0:03:24]} 36. h4 {[%emt 0:00:00]} g6 {[%emt 0:01:56]} 37. fxg6+ {[%emt 0:00:00]} hxg6 {[%emt 0:00:02]} 38. Rg5 {[%emt 0:00:47]} Rh8 {[%emt 0:01:33]} 39. Rxe5 {[%emt 0:00:12]} Rxh4 {[%emt 0:00:19]} 40. c6 {[%emt 0:00:15]} Re7 {[%emt 0:00:18]} 41. Kd4 {[%emt 0:01:08] [#] Rxe7+ is the strong threat.} Rh1 {[%emt 0:04:47]} 42. Rxe7+ {[%emt 0:00:34]} Kxe7 {[%emt 0:00:21] KR-KR} 43. Kd5 {[%emt 0:00:02]} Kf6 $1 {[%emt 0:01:37]} 44. Rxc7 {[%emt 0:00:40] Threatens to win with e5+.} Rd1+ {[%emt 0:00:20]} 45. Kc5 {[%emt 0:00:23] [#] Strongly threatening Rd7.} g5 $2 {[%emt 0:01:21][%mdl 8192] Black cannot hold the game after this.} (45... Rc1+ $11 46. Kb6 Rb1+ 47. Ka6 Ra1+ 48. Kb7 Rb1+ 49. Ka7 Rc1) 46. Rc8 {[%emt 0:00:36]} (46. Rd7 $142 Rc1+ 47. Kd6 Rd1+ 48. Kc7) 46... Rc1+ {[%emt 0:01:02]} 47. Kd6 {[%emt 0:04:56] White threatens Rf8+ and mate.} Rd1+ {[%emt 0:00:19]} 48. Kc7 {[%emt 0:00:03]} g4 {[%emt 0:01:04]} 49. Rg8 {[%emt 0:00:18]} Rg1 {[%emt 0:00:10]} 50. Kd8 {[%emt 0:00:28]} (50. Kb7 $142 {Threatening mate with c7.} Ke5 51. c7 Rb1+ 52. Kc6 Rc1+ 53. Kd7) 50... g3 {[%emt 0:00:21]} 51. c7 {[%emt 0:00:50] White mates.} Rd1+ {[%emt 0:00:20]} 52. Ke8 {[%emt 0:00:09]} Rc1 {[%emt 0:00:18]} 53. Kd7 {[%emt 0:00:22]} ({Worse is} 53. Rxg3 Rxc7 54. Kd8 Rc5 $11) 53... Rd1+ {[%emt 0:00:15]} 54. Kc6 {[%emt 0:00:08]} Rc1+ {[%emt 0:00:26]} 55. Kb6 {[%emt 0:01:07]} Rb1+ {[%emt 0:00:28]} 56. Ka5 {[%emt 0:00:32]} Rc1 {[%emt 0:00:51]} 57. c8=Q {[%emt 0:00:10] Weighted Error Value: White=0.15 (very precise) /Black=0.24 (precise) .  Loses game:     	---       	Black=1      Mistake:       	White=1     	---        Inaccurate:     	White=2     	Black=2      OK:         	White=15    	Black=18     Best:        	White=3     	Black=3      Strong:       	---       	Black=1} 1-0

[Event "Catalonia Championship Veterans 2024"]
[Site "Salou Tarragona"]
[Date "2024.05.17"]
[Round "7.6"]
[White "Noria Silvestre, Joaquin"]
[Black "Torrecillas Martinez, Antonio"]
[Result "1/2-1/2"]
[ECO "C11"]
[WhiteElo "2126"]
[BlackElo "2298"]
[Annotator "RC"]
[PlyCount "56"]
[EventDate "2024.05.11"]
[EventType "swiss"]
[EventCountry "ESP"]
[SourceTitle "playchess.com"]
[Source "ChessBase"]
[SourceQuality "1"]
[TimeControl "5400+30"]

1. e4 {[%emt 0:00:05]} e6 {[%emt 0:00:06]} 2. Nc3 {[%emt 0:00:14]} d5 {[%emt 0:00:10]} 3. d4 {[%emt 0:00:33]} Nf6 {[%emt 0:00:07]} 4. e5 {[%emt 0:00:17]} Nfd7 {[%emt 0:00:01]} 5. Be3 {[%emt 0:00:11]} c5 {[%emt 0:01:24]} 6. f4 {[%emt 0:00:10]} cxd4 {[%emt 0:02:47]} 7. Bxd4 {[%emt 0:01:14]} Nc6 {[%emt 0:00:20]} 8. Nf3 {[%emt 0:00:38]} Nxd4 {[%emt 0:04:24]} 9. Nxd4 {[%emt 0:02:11]} Bc5 {[%emt 0:05:05]} 10. a3 {[%emt 0:07:05]} Nxe5 {[%emt 0:05:42]} 11. Nb3 {[%emt 0:03:41]} Nd7 {[%emt 0:07:44]} 12. Nxc5 {[%emt 0:00:13]} Nxc5 {[%emt 0:00:06]} 13. Qd4 {[%emt 0:00:07]} Qb6 {[%emt 0:12:35]} 14. Qxg7 {[%emt 0:09:47]} Rf8 {[%emt 0:00:12]} 15. O-O-O {[%emt 0:00:13]} Bd7 {[%emt 0:01:02]} 16. Qf6 {[%emt 0:10:15]} Bc6 {[%emt 0:14:13]} 17. f5 {[%emt 0:01:00]} Rd8 {[%emt 0:06:09]} 18. b4 {[%emt 0:35:19]} Nd7 {[%emt 0:05:03]} 19. Qg5 {[%emt 0:00:09]} d4 {[%emt 0:06:24]} 20. Nb5 {[%emt 0:15:46]} Bxb5 {[%emt 0:05:17]} 21. fxe6 {[%emt 0:00:11]} fxe6 {[%emt 0:01:10]} 22. Bxb5 {[%emt 0:03:14]} Rf5 {[%emt 0:00:29]} 23. Bxd7+ {[%emt 0:09:27]} Rxd7 {[%emt 0:00:13]} 24. Qg3 {[%emt 0:00:00]} Qd6 {[%emt 0:04:25]} 25. Qxd6 {[%emt 0:00:00]} Rxd6 {[%emt 0:17:52]} 26. Rhe1 {[%emt 0:00:00]} Rg5 {[%emt 0:00:00]} 27. Rd2 {[%emt 0:00:00]} Ke7 {[%emt 0:00:00]} 28. Re4 {[%emt 0:00:00]} h5 {[%emt 0:00:00]} 1/2-1/2

[Event "Catalonia Championship Veterans 2024"]
[Site "Salou Tarragona"]
[Date "2024.05.17"]
[Round "7.7"]
[White "Cuadras Avellana, Jordi"]
[Black "Jove Grau, Lluis"]
[Result "1-0"]
[ECO "C60"]
[WhiteElo "2176"]
[BlackElo "2049"]
[Annotator "RC"]
[PlyCount "64"]
[EventDate "2024.05.11"]
[EventType "swiss"]
[EventCountry "ESP"]
[SourceTitle "playchess.com"]
[Source "ChessBase"]
[SourceQuality "1"]
[TimeControl "5400+30"]

1. e4 {[%emt 0:00:03]} e5 {[%emt 0:04:34]} 2. Nf3 {[%emt 0:00:19]} Nc6 {[%emt 0:00:14]} 3. Bb5 {[%emt 0:00:18]} Qf6 {[%emt 0:04:34]} 4. Nc3 {[%emt 0:02:22]} Bd6 {[%emt 0:01:26]} 5. O-O {[%emt 0:04:56]} Nge7 {[%emt 0:00:28]} 6. Ne2 {[%emt 0:07:15]} O-O {[%emt 0:03:45]} 7. d3 {[%emt 1:18:47]} h6 {[%emt 1:18:59]} 8. c3 {[%emt 0:00:00]} Ng6 {[%emt 0:00:00]} 9. d4 {[%emt 0:00:00]} Nh4 {[%emt 0:00:00]} 10. Nxh4 {[%emt 0:00:00]} Qxh4 {[%emt 0:00:00]} 11. f4 {[%emt 0:00:00]} exd4 {[%emt 0:00:00]} 12. cxd4 {[%emt 0:00:00]} Be7 {[%emt 0:00:00]} 13. d5 Bc5+ {[%emt 0:00:00]} 14. Kh1 Nd8 {[%emt 0:00:00]} 15. Qc2 Qe7 {[%emt 0:00:00]} 16. f5 f6 {[%emt 0:00:00]} 17. Nf4 Bb6 {[%emt 0:00:00]} 18. Ng6 Qb4 {[%emt 0:00:00]} 19. Bd3 Re8 {[%emt 0:00:00]} 20. Bd2 Qd4 {[%emt 0:00:00]} 21. Bc3 Qc5 {[%emt 0:00:00]} 22. e5 fxe5 {[%emt 0:00:00]} 23. f6 gxf6 {[%emt 0:00:00]} 24. Rxf6 d6 {[%emt 0:00:00]} 25. Raf1 Kg7 {[%emt 0:00:00]} 26. R6f3 Bg4 {[%emt 0:00:00]} 27. Rg3 h5 {[%emt 0:00:00]} 28. h3 Nf7 {[%emt 0:00:00]} 29. Nf4 Kh8 {[%emt 0:00:00]} 30. b4 Qxc3 {[%emt 0:00:00]} 31. Qxc3 Bd4 {[%emt 0:00:00]} 32. Ng6+ Kg7 {[%emt 0:00:00]} 1-0

[Event "Catalonia Championship Veterans 2024"]
[Site "Salou Tarragona"]
[Date "2024.05.17"]
[Round "7.8"]
[White "Tosan Pereira, Felipe"]
[Black "Palacin Martin, Ricardo"]
[Result "1/2-1/2"]
[ECO "B23"]
[WhiteElo "2062"]
[BlackElo "1968"]
[Annotator "NA RC"]
[PlyCount "95"]
[EventDate "2024.05.11"]
[EventType "swiss"]
[EventCountry "ESP"]
[SourceTitle "playchess.com"]
[Source "ChessBase"]
[SourceQuality "1"]
[TimeControl "5400+30"]

1. e4 {[%emt 0:00:03]} c5 {[%emt 0:00:09]} 2. Nc3 {[%emt 0:00:37]} Nc6 {[%emt 0:00:21]} 3. f4 {[%emt 0:00:09]} e6 {[%emt 0:00:41]} 4. Nf3 {[%emt 0:00:24]} Nge7 {[%emt 0:01:10]} 5. g3 {[%emt 0:02:10]} d5 {[%emt 0:02:52]} 6. Bg2 {[%emt 0:00:31]} b6 {[%emt 0:02:33]} 7. d3 {[%emt 0:00:25]} Bb7 {[%emt 0:01:09]} 8. O-O {[%emt 0:00:39]} Qd7 {[%emt 0:01:31]} 9. Ne5 {[%emt 0:32:46]} Nxe5 {[%emt 0:01:09]} 10. fxe5 {[%emt 0:57:46]} d4 {[%emt 0:02:19]} 11. Ne2 {[%emt 0:00:00]} Ng6 {[%emt 0:00:28]} 12. Bf4 {[%emt 0:00:00]} Be7 {[%emt 0:01:39]} 13. Bd2 {[%emt 0:01:30]} Nxe5 {[%emt 0:03:09]} 14. Nf4 {[%emt 0:00:00]} O-O {[%emt 0:01:30]} 15. Qh5 {[%emt 0:00:00]} Ng6 {[%emt 0:02:27]} 16. g4 {[%emt 0:00:00]} Nxf4 {[%emt 0:05:54]} 17. Rxf4 {[%emt 0:00:00]} g6 {[%emt 0:01:20]} 18. Qh6 {[%emt 0:00:00]} f6 {[%emt 0:02:00]} 19. Raf1 {[%emt 0:00:00]} Rf7 {[%emt 0:01:24]} 20. Qh3 {[%emt 0:00:00]} Raf8 {[%emt 0:01:08]} 21. R4f3 {[%emt 0:00:00]} Bc8 {[%emt 0:08:41]} 22. Bh6 {[%emt 0:00:00]} Re8 {[%emt 0:01:23]} 23. Qg3 {[%emt 0:00:00]} Bd6 {[%emt 0:02:01]} 24. Qf2 {[%emt 0:00:00]} Be5 {[%emt 0:02:10]} 25. h4 {[%emt 0:00:00]} f5 {[%emt 0:05:16]} 26. Bh3 {[%emt 0:00:00]} Bg7 {[%emt 0:03:14]} 27. Qd2 {[%emt 0:00:00]} Ref8 {[%emt 0:02:03]} 28. gxf5 {[%emt 0:00:00]} exf5 {[%emt 0:01:57]} 29. exf5 {[%emt 0:00:00]} gxf5 {[%emt 0:43:22]} 30. Rg3 {[%emt 0:03:27]} Kh8 {[%emt 0:00:00]} 31. Rxf5 {[%emt 0:00:56]} Qe8 {[%emt 0:00:00]} 32. Rxf7 {[%emt 0:03:05]} Rxf7 {[%emt 0:00:00]} 33. Bxg7+ {[%emt 0:00:29]} Rxg7 {[%emt 0:00:00]} 34. Rxg7 {[%emt 0:00:04]} Kxg7 {[%emt 0:00:00]} 35. Qg5+ {[%emt 0:00:12]} Kh8 {[%emt 0:00:00]} 36. Qf6+ {[%emt 0:00:14]} Kg8 {[%emt 0:00:00]} 37. Bg2 {[%emt 0:00:08]} Be6 {[%emt 0:00:00]} 38. Be4 {[%emt 0:00:38]} Bf7 {[%emt 0:04:30]} 39. Qg5+ {[%emt 0:00:48]} Kh8 {[%emt 0:00:00]} 40. Qf6+ {[%emt 0:01:09]} Kg8 {[%emt 0:00:00]} 41. Kf2 {[%emt 0:00:41]} Qf8 {[%emt 0:00:00]} 42. h5 {[%emt 0:00:32]} h6 {[%emt 0:00:00]} 43. Bf5 {[%emt 0:01:52]} Qg7 {[%emt 0:00:00]} 44. Qd8+ {[%emt 0:00:08]} Qf8 {[%emt 0:00:00]} 45. Qf6 {[%emt 0:00:35]} Qg7 {[%emt 0:00:00]} 46. Qd8+ {[%emt 0:00:39]} Qf8 {[%emt 0:00:00]} 47. Qf6 {[%emt 0:00:16]} Qg7 {[%emt 0:00:00]} 48. Qd8+ {[%emt 0:01:37]} 1/2-1/2

[Event "Catalonia Championship Veterans 2024"]
[Site "Salou Tarragona"]
[Date "2024.05.17"]
[Round "7.9"]
[White "Vallbona Domingo, Joan"]
[Black "Sanchez Criado, Lluis"]
[Result "0-1"]
[ECO "E05"]
[WhiteElo "1938"]
[BlackElo "2060"]
[Annotator "NA RC"]
[PlyCount "56"]
[EventDate "2024.05.11"]
[EventType "swiss"]
[EventCountry "ESP"]
[SourceTitle "playchess.com"]
[Source "ChessBase"]
[SourceQuality "1"]
[TimeControl "5400+30"]

1. c4 {[%emt 0:00:30]} Nf6 {[%emt 0:00:30]} 2. g3 {[%emt 0:00:30]} e6 {[%emt 0:00:14]} 3. Bg2 {[%emt 0:00:23]} d5 {[%emt 0:00:21]} 4. Nf3 {[%emt 0:00:41]} Be7 {[%emt 0:00:13]} 5. O-O {[%emt 0:00:27]} O-O {[%emt 0:00:11]} 6. d4 {[%emt 0:00:37]} dxc4 {[%emt 0:01:02]} 7. Qc2 {[%emt 0:02:09]} a6 {[%emt 0:00:19]} 8. Rd1 {[%emt 0:05:39]} b5 {[%emt 0:10:31]} 9. Ne5 {[%emt 0:06:01]} Nd5 {[%emt 0:04:35]} 10. Nc3 {[%emt 0:00:53]} Bb7 {[%emt 0:01:02]} 11. e4 {[%emt 0:02:48]} Nb4 {[%emt 0:05:07]} 12. Qe2 {[%emt 0:02:36]} Nd7 {[%emt 0:21:58]} 13. b3 {[%emt 0:17:40]} Nxe5 {[%emt 0:06:31]} 14. dxe5 {[%emt 0:00:25]} Nd3 {[%emt 0:00:14]} 15. bxc4 {[%emt 0:00:38]} bxc4 {[%emt 0:00:25]} 16. Be3 {[%emt 0:01:40]} Ba3 {[%emt 0:06:06]} 17. Qc2 {[%emt 0:04:25]} Qe7 {[%emt 0:03:15]} 18. Rab1 {[%emt 0:06:24]} Bc6 {[%emt 0:01:34]} 19. Ne2 {[%emt 0:01:28]} Bb5 {[%emt 0:02:31]} 20. Nd4 {[%emt 0:07:56]} c6 {[%emt 0:33:51]} 21. Nf3 {[%emt 0:02:51]} h6 {[%emt 0:00:00]} 22. Bf1 {[%emt 0:00:26]} Rfd8 {[%emt 0:00:00]} 23. Bd4 {[%emt 0:10:23]} Nb4 {[%emt 0:00:00]} 24. Qc3 {[%emt 0:02:20]} Nd3 {[%emt 0:00:00]} 25. Bxd3 {[%emt 0:04:10]} cxd3 {[%emt 0:00:00]} 26. Nd2 {[%emt 0:19:30]} Ba4 {[%emt 0:00:00]} 27. Nb3 {[%emt 0:00:00]} c5 {[%emt 0:00:00]} 28. Qa5 {[%emt 0:00:00]} Bxb3 {[%emt 0:00:00]} 0-1